[Event "10th Cesme Open-B 2024"]
[Site "Cesme"]
[Date "2024.06.29"]
[Round "8"]
[White "Yelligedik, Murat"]
[Black "Tezcan, Alper"]
[Result "0-1"]
[ECO "A07"]
[WhiteElo "1984"]
[BlackElo "1936"]
[Annotator "RC"]
[PlyCount "78"]
[EventDate "2024.06.23"]
[EventType "swiss"]
[EventCountry "TUR"]
[SourceTitle "playchess.com"]
[Source "ChessBase"]
[SourceQuality "1"]
[TimeControl "5400+30"]

1. Nf3 {[%emt 0:01:00]} d5 {[%emt 0:01:00]} 2. g3 {[%emt 0:00:30]} Nf6 {[%emt 0:00:30]} 3. Bg2 {[%emt 0:00:00]} Bf5 {[%emt 0:00:00]} 4. d3 {[%emt 0:00:00]} h6 {[%emt 0:01:00]} 5. O-O {[%emt 0:00:00]} e6 {[%emt 0:00:30]} 6. Nbd2 {[%emt 0:01:00]} c6 {[%emt 0:02:30]} 7. Qe1 {[%emt 0:02:30]} Be7 {[%emt 0:01:30]} 8. e4 {[%emt 0:00:30]} dxe4 {[%emt 0:00:30]} 9. dxe4 {[%emt 0:00:30]} Bh7 {[%emt 0:00:30]} 10. Qe2 {[%emt 0:00:30]} O-O {[%emt 0:01:30]} 11. Rd1 {[%emt 0:09:30]} Qb6 {[%emt 0:10:30]} 12. Nc4 {[%emt 0:11:30]} Qa6 {[%emt 0:03:30]} 13. Nfe5 {[%emt 0:05:30]} c5 {[%emt 0:28:30]} 14. Bf4 {[%emt 0:08:30]} b5 {[%emt 0:14:30]} 15. Nd2 {[%emt 0:10:30]} Nc6 {[%emt 0:13:50]} 16. a4 {[%emt 0:11:30]} Nd4 {[%emt 0:00:20]} 17. Qd3 {[%emt 0:11:30]} Rfd8 {[%emt 0:01:46]} 18. axb5 {[%emt 0:01:30]} Qb7 {[%emt 0:00:04]} 19. c4 {[%emt 0:05:02]} g5 {[%emt 0:01:36]} 20. Kh1 {[%emt 0:01:54]} gxf4 {[%emt 0:01:54]} 21. gxf4 {[%emt 0:00:07]} Bf8 {[%emt 0:03:57]} 22. Rg1 {[%emt 0:05:14]} Kh8 {[%emt 0:00:30]} 23. Rae1 {[%emt 0:00:30]} Nxb5 {[%emt 0:03:00]} 24. Qb3 {[%emt 0:08:45]} Rxd2 {[%emt 0:00:35]} 25. cxb5 {[%emt 0:00:30]} Bg7 {[%emt 0:05:47]} 26. Qg3 {[%emt 0:02:57]} Rg8 {[%emt 0:00:51]} 27. f3 {[%emt 0:01:37]} Qe7 {[%emt 0:01:51]} 28. Qh4 {[%emt 0:00:50]} Re8 {[%emt 0:01:19]} 29. Nc6 {[%emt 0:00:18]} Qb7 {[%emt 0:00:25]} 30. Bf1 {[%emt 0:00:21]} Rg8 {[%emt 0:00:59]} 31. Bc4 {[%emt 0:00:11]} Ne8 {[%emt 0:00:10]} 32. f5 {[%emt 0:00:30]} Qd7 {[%emt 0:00:27]} 33. fxe6 {[%emt 0:01:30]} fxe6 {[%emt 0:00:30]} 34. Qh3 {[%emt 0:00:00]} Rf8 {[%emt 0:00:17]} 35. Bxe6 {[%emt 0:00:00]} Qd3 {[%emt 0:00:32]} 36. Bg4 {[%emt 0:01:10]} Nd6 {[%emt 0:00:39]} 37. Ne7 {[%emt 0:00:30]} Nxe4 {[%emt 0:00:29]} 38. Rxe4 {[%emt 0:00:33]} Bxe4 {[%emt 0:00:16]} 39. fxe4 {[%emt 0:00:42]} Qxe4+ {[%emt 0:00:06]} 0-1

[Event "10th Cesme Open-B 2024"]
[Site "Cesme"]
[Date "2024.06.29"]
[Round "8"]
[White "Yildiz, Egehan"]
[Black "Yigit, Ahmet Yasir"]
[Result "1-0"]
[ECO "A90"]
[WhiteElo "1984"]
[BlackElo "1964"]
[Annotator "NA RC"]
[PlyCount "121"]
[EventDate "2024.06.23"]
[EventType "swiss"]
[EventCountry "TUR"]
[SourceTitle "playchess.com"]
[Source "ChessBase"]
[SourceQuality "1"]
[TimeControl "5400+30"]

1. d4 {[%emt 0:01:00]} d5 {[%emt 0:01:00]} 2. c4 {[%emt 0:00:30]} e6 {[%emt 0:00:30]} 3. Nf3 {[%emt 0:00:00]} c6 {[%emt 0:00:00]} 4. Qc2 {[%emt 0:03:00]} Nf6 {[%emt 0:00:00]} 5. g3 {[%emt 0:00:30]} Ne4 {[%emt 0:01:30]} 6. Bg2 {[%emt 0:01:30]} Bd6 {[%emt 0:00:30]} 7. O-O {[%emt 0:01:30]} O-O {[%emt 0:00:00]} 8. Bf4 {[%emt 0:08:30]} Bxf4 {[%emt 0:04:00]} 9. gxf4 {[%emt 0:00:00]} Nd7 {[%emt 0:00:00]} 10. Nbd2 {[%emt 0:03:00]} f5 {[%emt 0:02:00]} 11. e3 {[%emt 0:07:30]} Ndf6 {[%emt 0:00:30]} 12. Ne5 {[%emt 0:02:30]} Bd7 {[%emt 0:00:30]} 13. Nxe4 {[%emt 0:00:30]} fxe4 {[%emt 0:03:30]} 14. f3 {[%emt 0:16:30]} exf3 {[%emt 0:00:30]} 15. Rxf3 {[%emt 0:00:30]} Be8 {[%emt 0:00:30]} 16. Rh3 {[%emt 0:02:30]} Bh5 {[%emt 0:10:30]} 17. c5 {[%emt 0:09:30]} Qe8 {[%emt 0:04:30]} 18. Bf1 {[%emt 0:00:30]} g6 {[%emt 0:00:30]} 19. Bd3 {[%emt 0:00:30]} Ng4 {[%emt 0:00:30]} 20. Nxg4 {[%emt 0:00:30]} Bxg4 {[%emt 0:00:30]} 21. Rg3 {[%emt 0:00:30]} Bf5 {[%emt 0:00:30]} 22. h4 {[%emt 0:00:30]} Qe7 {[%emt 0:00:30]} 23. h5 {[%emt 0:00:30]} Qh4 {[%emt 0:00:30]} 24. Rg5 {[%emt 0:00:30]} Kf7 {[%emt 0:00:30]} 25. Bxf5 {[%emt 0:00:30]} gxf5 {[%emt 0:00:30]} 26. Qh2 {[%emt 0:00:30]} Qxh2+ {[%emt 0:00:30]} 27. Kxh2 {[%emt 0:00:30]} Rg8 {[%emt 0:00:30]} 28. Rag1 {[%emt 0:28:28]} Rxg5 {[%emt 0:32:30]} 29. fxg5 {[%emt 0:00:30]} e5 {[%emt 0:00:30]} 30. Rf1 {[%emt 0:00:30]} Ke6 {[%emt 0:00:30]} 31. Kg3 {[%emt 0:00:30]} Rg8 {[%emt 0:00:30]} 32. Kh4 {[%emt 0:00:30]} Rh8 {[%emt 0:00:30]} 33. Rg1 {[%emt 0:00:30]} Rg8 {[%emt 0:00:30]} 34. Rf1 {[%emt 0:00:30]} Rh8 {[%emt 0:00:30]} 35. dxe5 {[%emt 0:00:30]} Kxe5 {[%emt 0:00:30]} 36. Rf4 {[%emt 0:00:30]} Re8 {[%emt 0:00:30]} 37. Ra4 {[%emt 0:00:30]} a6 {[%emt 0:00:30]} 38. Rb4 {[%emt 0:00:30]} Re7 {[%emt 0:00:30]} 39. Rf4 {[%emt 0:00:30]} Ke6 {[%emt 0:00:30]} 40. h6 {[%emt 0:00:30]} Kf7 {[%emt 0:00:30]} 41. Rxf5+ {[%emt 0:07:44]} Kg8 {[%emt 0:13:30]} 42. Rf6 {[%emt 0:03:03]} Rxe3 {[%emt 0:04:30]} 43. Rd6 {[%emt 0:00:07]} Re7 {[%emt 0:02:37]} 44. Rd8+ {[%emt 0:01:07]} Kf7 {[%emt 0:00:01]} 45. Kh5 {[%emt 0:00:00]} a5 {[%emt 0:01:22]} 46. a4 {[%emt 0:00:11]} Rc7 {[%emt 0:05:08]} 47. Rh8 {[%emt 0:00:30]} Ke6 {[%emt 0:00:27]} 48. Rxh7 {[%emt 0:02:14]} Rxh7 {[%emt 0:00:44]} 49. g6 {[%emt 0:00:06]} Rh8 {[%emt 0:00:54]} 50. g7 {[%emt 0:00:39]} Rg8 {[%emt 0:00:30]} 51. Kg6 {[%emt 0:00:30]} d4 {[%emt 0:00:30]} 52. h7 {[%emt 0:00:13]} Rxg7+ {[%emt 0:00:06]} 53. Kxg7 {[%emt 0:00:30]} Kd5 {[%emt 0:00:00]} 54. h8=Q {[%emt 0:00:04]} Kxc5 {[%emt 0:00:00]} 55. Qd8 {[%emt 0:00:00]} Kc4 {[%emt 0:02:00]} 56. Qxa5 {[%emt 0:00:00]} b5 {[%emt 0:00:00]} 57. axb5 {[%emt 0:00:45]} cxb5 {[%emt 0:00:18]} 58. Qd2 {[%emt 0:00:30]} b4 {[%emt 0:00:30]} 59. Kf6 {[%emt 0:00:30]} d3 {[%emt 0:00:30]} 60. Ke5 {[%emt 0:00:30]} Kb3 {[%emt 0:00:30]} 61. Kd4 {[%emt 0:00:30]} 1-0

[Event "10th Cesme Open-B 2024"]
[Site "Cesme"]
[Date "2024.06.29"]
[Round "8"]
[White "Dogan, Umut Anil"]
[Black "Atis, Hasan"]
[Result "0-1"]
[ECO "E01"]
[WhiteElo "1982"]
[BlackElo "1988"]
[Annotator "RC"]
[PlyCount "116"]
[EventDate "2024.06.23"]
[EventType "swiss"]
[EventCountry "TUR"]
[SourceTitle "playchess.com"]
[Source "ChessBase"]
[SourceQuality "1"]
[TimeControl "5400+30"]

1. Nf3 {[%emt 0:01:00]} d5 {[%emt 0:01:00]} 2. d4 {[%emt 0:00:30]} Nf6 {[%emt 0:00:30]} 3. g3 {[%emt 0:01:30]} e6 {[%emt 0:00:30]} 4. Bg2 {[%emt 0:00:30]} Bd6 {[%emt 0:04:30]} 5. O-O {[%emt 0:01:30]} O-O {[%emt 0:00:30]} 6. c4 {[%emt 0:00:30]} c6 {[%emt 0:01:30]} 7. Nc3 {[%emt 0:01:30]} Nbd7 {[%emt 0:00:30]} 8. Qc2 {[%emt 0:04:30]} Re8 {[%emt 0:17:30]} 9. Rd1 {[%emt 0:04:30]} Bb4 {[%emt 0:12:30]} 10. Bg5 {[%emt 0:07:30]} h6 {[%emt 0:13:30]} 11. Bxf6 {[%emt 0:01:30]} Qxf6 {[%emt 0:00:30]} 12. e4 {[%emt 0:04:30]} dxc4 {[%emt 0:05:30]} 13. e5 {[%emt 0:00:30]} Qf5 {[%emt 0:04:30]} 14. Qe2 {[%emt 0:01:30]} Nb6 {[%emt 0:00:30]} 15. Ne4 {[%emt 0:06:30]} Qh5 {[%emt 0:10:30]} 16. h3 {[%emt 0:05:30]} Be7 {[%emt 0:01:30]} 17. Nc5 {[%emt 0:05:30]} Rd8 {[%emt 0:03:30]} 18. Rac1 {[%emt 0:01:30]} a5 {[%emt 0:00:56]} 19. a4 {[%emt 0:07:30]} Ra7 {[%emt 0:00:16]} 20. Qe4 {[%emt 0:00:30]} Qf5 {[%emt 0:01:18]} 21. Nd2 {[%emt 0:01:30]} Qxe4 {[%emt 0:02:01]} 22. Ndxe4 {[%emt 0:00:30]} Bd7 {[%emt 0:00:57]} 23. f4 {[%emt 0:00:30]} Nd5 {[%emt 0:00:30]} 24. Kf2 {[%emt 0:00:30]} b5 {[%emt 0:02:36]} 25. Rd2 {[%emt 0:10:30]} Be8 {[%emt 0:00:30]} 26. h4 {[%emt 0:00:30]} Nb4 {[%emt 0:00:30]} 27. Ke3 {[%emt 0:03:30]} Na6 {[%emt 0:03:25]} 28. Rcd1 {[%emt 0:01:30]} Nc7 {[%emt 0:01:50]} 29. Rc1 {[%emt 0:00:30]} Nd5+ {[%emt 0:01:35]} 30. Kf3 {[%emt 0:01:30]} Rb8 {[%emt 0:00:04]} 31. Bh3 {[%emt 0:00:30]} Raa8 {[%emt 0:04:30]} 32. g4 {[%emt 0:00:30]} Nc7 {[%emt 0:00:30]} 33. g5 {[%emt 0:00:30]} h5 {[%emt 0:02:40]} 34. g6 {[%emt 0:06:48]} fxg6 {[%emt 0:02:02]} 35. Nxe6 {[%emt 0:04:04]} Nxe6 {[%emt 0:00:30]} 36. Bxe6+ {[%emt 0:00:00]} Bf7 {[%emt 0:00:02]} 37. d5 {[%emt 0:01:13]} cxd5 {[%emt 0:01:02]} 38. Bxd5 {[%emt 0:00:25]} Bxd5 {[%emt 0:01:25]} 39. Rxd5 {[%emt 0:00:39]} bxa4 {[%emt 0:00:00]} 40. Rd7 {[%emt 0:02:08]} Rb3+ {[%emt 0:00:00]} 41. Ke2 {[%emt 0:03:40]} Rxb2+ {[%emt 0:00:00]} 42. Ke3 {[%emt 0:00:17]} Rb3+ {[%emt 0:00:05]} 43. Ke2 {[%emt 0:00:08]} Bf8 {[%emt 0:00:55]} 44. Nd2 {[%emt 0:02:34]} Rb2 {[%emt 0:02:34]} 45. Rxc4 {[%emt 0:00:44]} a3 {[%emt 0:00:01]} 46. Kd3 {[%emt 0:03:05]} a2 {[%emt 0:01:07]} 47. Ra4 {[%emt 0:00:13]} Bb4 {[%emt 0:00:00]} 48. Nc4 {[%emt 0:01:07]} Rb3+ {[%emt 0:00:00]} 49. Ke4 {[%emt 0:00:00]} Rc8 {[%emt 0:01:27]} 50. Nxa5 {[%emt 0:02:07]} Ra3 {[%emt 0:00:36]} 51. Rxa3 {[%emt 0:00:43]} Bxa3 {[%emt 0:00:30]} 52. Nb3 {[%emt 0:00:00]} Rc3 {[%emt 0:00:05]} 53. Na1 {[%emt 0:00:48]} Rc1 {[%emt 0:00:40]} 54. Nb3 {[%emt 0:00:55]} Rb1 {[%emt 0:00:30]} 55. Rd2 {[%emt 0:00:00]} Rxb3 {[%emt 0:00:02]} 56. Rxa2 {[%emt 0:00:00]} Kf7 {[%emt 0:00:06]} 57. Kd5 {[%emt 0:00:19]} Be7 {[%emt 0:00:39]} 58. Ra7 {[%emt 0:00:32]} Ra3 {[%emt 0:00:07]} 0-1

[Event "10th Cesme Open-B 2024"]
[Site "Cesme"]
[Date "2024.06.29"]
[Round "8"]
[White "Turgut, Hakan"]
[Black "Yildiz, Talat"]
[Result "1-0"]
[ECO "D53"]
[WhiteElo "1979"]
[BlackElo "1891"]
[Annotator "RC"]
[PlyCount "121"]
[EventDate "2024.06.23"]
[EventType "swiss"]
[EventCountry "TUR"]
[SourceTitle "playchess.com"]
[Source "ChessBase"]
[SourceQuality "1"]
[TimeControl "5400+30"]

1. Nf3 {[%emt 0:01:00]} Nf6 {[%emt 0:01:00]} 2. c4 {[%emt 0:00:00]} c6 {[%emt 0:02:30]} 3. d4 {[%emt 0:01:00]} d5 {[%emt 0:01:30]} 4. Nc3 {[%emt 0:00:30]} e6 {[%emt 0:00:00]} 5. Bg5 {[%emt 0:01:30]} Nbd7 {[%emt 0:00:00]} 6. e3 {[%emt 0:00:30]} Be7 {[%emt 0:00:30]} 7. Bd3 {[%emt 0:05:30]} dxc4 {[%emt 0:00:30]} 8. Bxc4 {[%emt 0:01:30]} b5 {[%emt 0:00:30]} 9. Be2 {[%emt 0:00:00]} Bb7 {[%emt 0:00:00]} 10. O-O {[%emt 0:00:00]} a6 {[%emt 0:01:00]} 11. Qb3 {[%emt 0:04:30]} c5 {[%emt 0:12:30]} 12. Rfd1 {[%emt 0:01:30]} c4 {[%emt 0:13:30]} 13. Qc2 {[%emt 0:00:30]} Rc8 {[%emt 0:01:30]} 14. a3 {[%emt 0:04:30]} O-O {[%emt 0:01:30]} 15. e4 {[%emt 0:02:30]} h6 {[%emt 0:02:30]} 16. Bh4 {[%emt 0:04:30]} Nb6 {[%emt 0:12:30]} 17. h3 {[%emt 0:09:30]} Nh5 {[%emt 0:09:30]} 18. Bxe7 {[%emt 0:01:30]} Qxe7 {[%emt 0:00:00]} 19. Qd2 {[%emt 0:10:30]} Nf6 {[%emt 0:01:00]} 20. Qf4 {[%emt 0:03:30]} Rfd8 {[%emt 0:04:30]} 21. g4 {[%emt 0:04:30]} Nh7 {[%emt 0:04:30]} 22. h4 {[%emt 0:02:30]} Nf8 {[%emt 0:03:30]} 23. g5 {[%emt 0:07:30]} Ng6 {[%emt 0:01:30]} 24. Qg3 {[%emt 0:00:30]} hxg5 {[%emt 0:00:30]} 25. Nxg5 {[%emt 0:00:30]} Qf6 {[%emt 0:00:30]} 26. Bh5 {[%emt 0:04:30]} Rf8 {[%emt 0:13:57]} 27. Ne2 {[%emt 0:02:30]} Na4 {[%emt 0:06:34]} 28. Rd2 {[%emt 0:02:30]} Ne7 {[%emt 0:02:48]} 29. f4 {[%emt 0:12:25]} Qh6 {[%emt 0:00:27]} 30. Bg4 {[%emt 0:00:29]} f5 {[%emt 0:00:34]} 31. exf5 {[%emt 0:02:25]} Nxf5 {[%emt 0:00:24]} 32. Qh3 {[%emt 0:00:59]} Bd5 {[%emt 0:01:47]} 33. h5 {[%emt 0:01:19]} Qf6 {[%emt 0:00:34]} 34. Nc3 {[%emt 0:02:29]} Nxc3 {[%emt 0:01:18]} 35. bxc3 {[%emt 0:00:30]} a5 {[%emt 0:00:22]} 36. Rb1 {[%emt 0:03:34]} Rb8 {[%emt 0:00:51]} 37. Rdb2 {[%emt 0:00:01]} b4 {[%emt 0:00:39]} 38. axb4 {[%emt 0:00:30]} axb4 {[%emt 0:00:00]} 39. Rxb4 {[%emt 0:00:11]} Rxb4 {[%emt 0:00:11]} 40. Rxb4 {[%emt 0:00:30]} Nxd4 {[%emt 0:00:04]} 41. Qg3 {[%emt 0:02:32]} Nf5 {[%emt 0:00:50]} 42. Qe1 {[%emt 0:00:13]} Qe7 {[%emt 0:01:40]} 43. Kh2 {[%emt 0:01:36]} Qa7 {[%emt 0:01:09]} 44. Rb2 {[%emt 0:01:21]} Ne3 {[%emt 0:00:28]} 45. Bh3 {[%emt 0:01:25]} Rxf4 {[%emt 0:00:27]} 46. Qb1 {[%emt 0:00:25]} Ng4+ {[%emt 0:00:42]} 47. Bxg4 {[%emt 0:00:46]} Rf2+ {[%emt 0:00:01]} 48. Kg3 {[%emt 0:00:42]} Qe3+ {[%emt 0:00:15]} 49. Kh4 {[%emt 0:00:03]} Rxb2 {[%emt 0:00:30]} 50. Qxb2 {[%emt 0:00:18]} Qe1+ {[%emt 0:00:18]} 51. Kh3 {[%emt 0:00:00]} Qf1+ {[%emt 0:00:36]} 52. Kg3 {[%emt 0:00:20]} Qg1+ {[%emt 0:00:34]} 53. Kf4 {[%emt 0:00:37]} Qf1+ {[%emt 0:00:43]} 54. Bf3 {[%emt 0:00:32]} e5+ {[%emt 0:00:51]} 55. Kxe5 {[%emt 0:00:47]} Qe1+ {[%emt 0:00:30]} 56. Kxd5 {[%emt 0:00:30]} Qg3 {[%emt 0:00:01]} 57. Qg2 {[%emt 0:00:21]} Qf4 {[%emt 0:00:30]} 58. Qg4 {[%emt 0:00:08]} Qd2+ {[%emt 0:00:14]} 59. Kxc4 {[%emt 0:00:11]} Qa2+ {[%emt 0:00:00]} 60. Kb5 {[%emt 0:01:04]} Qb1+ {[%emt 0:00:02]} 61. Kc5 {[%emt 0:00:00]} 1-0

[Event "10th Cesme Open-B 2024"]
[Site "Cesme"]
[Date "2024.06.29"]
[Round "8"]
[White "Dirikolu, Deniz"]
[Black "Aydin, Ahmet Turker"]
[Result "1/2-1/2"]
[ECO "C15"]
[WhiteElo "1978"]
[BlackElo "1722"]
[Annotator "RC"]
[PlyCount "202"]
[EventDate "2024.06.23"]
[EventType "swiss"]
[EventCountry "TUR"]
[SourceTitle "playchess.com"]
[Source "ChessBase"]
[SourceQuality "1"]
[TimeControl "5400+30"]

1. e4 {[%emt 0:01:00]} e6 {[%emt 0:02:00]} 2. d4 {[%emt 0:00:30]} d5 {[%emt 0:00:30]} 3. Nc3 {[%emt 0:00:30]} Bb4 {[%emt 0:00:30]} 4. Nge2 {[%emt 0:00:30]} dxe4 {[%emt 0:00:30]} 5. a3 {[%emt 0:00:00]} Bxc3+ {[%emt 0:02:30]} 6. Nxc3 {[%emt 0:00:00]} Nc6 {[%emt 0:16:30]} 7. d5 {[%emt 0:00:00]} exd5 {[%emt 0:00:00]} 8. Qxd5 {[%emt 0:00:00]} Be6 {[%emt 0:01:00]} 9. Qxe4 {[%emt 0:00:00]} Nf6 {[%emt 0:07:30]} 10. Be3 {[%emt 0:02:00]} Qe7 {[%emt 0:00:30]} 11. Qh4 {[%emt 0:00:30]} O-O-O {[%emt 0:00:30]} 12. Be2 {[%emt 0:09:30]} Nd5 {[%emt 0:00:30]} 13. Qxe7 {[%emt 0:00:30]} Ndxe7 {[%emt 0:01:30]} 14. Rd1 {[%emt 0:15:30]} Bf5 {[%emt 0:08:30]} 15. Rd2 {[%emt 0:00:00]} Rxd2 {[%emt 0:09:30]} 16. Kxd2 {[%emt 0:00:00]} Rd8+ {[%emt 0:00:30]} 17. Kc1 {[%emt 0:00:30]} Nd4 {[%emt 0:00:30]} 18. Bd1 {[%emt 0:00:30]} Nec6 {[%emt 0:08:30]} 19. Re1 {[%emt 0:00:30]} f6 {[%emt 0:01:30]} 20. Ne2 {[%emt 0:03:30]} g5 {[%emt 0:00:30]} 21. Ng3 {[%emt 0:00:30]} Bg6 {[%emt 0:05:30]} 22. c3 {[%emt 0:04:30]} Nb5 {[%emt 0:02:30]} 23. f4 {[%emt 0:00:30]} gxf4 {[%emt 0:00:30]} 24. Bxf4 {[%emt 0:00:30]} Nd6 {[%emt 0:00:30]} 25. Re6 {[%emt 0:00:30]} Nc4 {[%emt 0:00:30]} 26. Rxf6 {[%emt 0:00:30]} Kb8 {[%emt 0:00:30]} 27. Bc2 {[%emt 0:00:30]} Ne7 {[%emt 0:00:30]} 28. Re6 {[%emt 0:00:30]} Nd5 {[%emt 0:00:30]} 29. Bg5 {[%emt 0:00:30]} Rf8 {[%emt 0:00:30]} 30. Bxg6 {[%emt 0:00:30]} hxg6 {[%emt 0:00:30]} 31. Bh6 {[%emt 0:00:30]} Rh8 {[%emt 0:00:30]} 32. Bg7 {[%emt 0:00:30]} Rg8 {[%emt 0:00:30]} 33. Rxg6 {[%emt 0:00:30]} a5 {[%emt 0:23:51]} 34. h4 {[%emt 0:13:30]} Nf4 {[%emt 0:00:30]} 35. Rg4 {[%emt 0:00:30]} Ne5 {[%emt 0:00:30]} 36. Rg5 {[%emt 0:07:30]} Nf7 {[%emt 0:02:42]} 37. Rf5 {[%emt 0:00:30]} Rxg7 {[%emt 0:00:30]} 38. Rxf4 {[%emt 0:00:30]} Rxg3 {[%emt 0:00:30]} 39. Rxf7 {[%emt 0:00:30]} Rxg2 {[%emt 0:00:30]} 40. Rf4 {[%emt 0:00:30]} Rh2 {[%emt 0:00:30]} 41. Kb1 {[%emt 0:00:30]} b6 {[%emt 0:00:30]} 42. Ka2 {[%emt 0:00:30]} Kb7 {[%emt 0:00:30]} 43. Kb3 {[%emt 0:00:30]} Ka6 {[%emt 0:00:30]} 44. c4 {[%emt 0:00:30]} Kb7 {[%emt 0:00:30]} 45. Kc3 {[%emt 0:00:30]} Kc6 {[%emt 0:00:30]} 46. Rf6+ {[%emt 0:00:30]} Kb7 {[%emt 0:00:30]} 47. Rh6 {[%emt 0:00:30]} Kb8 {[%emt 0:00:30]} 48. Rh8+ {[%emt 0:00:30]} Kb7 {[%emt 0:00:30]} 49. h5 {[%emt 0:00:30]} Rh4 {[%emt 0:00:30]} 50. h6 {[%emt 0:00:30]} Ka7 {[%emt 0:00:30]} 51. a4 {[%emt 0:00:30]} Kb7 {[%emt 0:00:30]} 52. Kd3 {[%emt 0:00:30]} Kc6 {[%emt 0:00:30]} 53. b3 {[%emt 0:00:30]} Kc5 {[%emt 0:00:30]} 54. Rh7 {[%emt 0:00:30]} Kb4 {[%emt 0:00:30]} 55. Rxc7 {[%emt 0:00:30]} Rxh6 {[%emt 0:00:30]} 56. Rb7 {[%emt 0:00:30]} Kc5 {[%emt 0:00:30]} 57. Kc3 {[%emt 0:00:30]} Rh3+ {[%emt 0:00:30]} 58. Kb2 {[%emt 0:00:30]} Rh6 {[%emt 0:00:30]} 59. Ka3 {[%emt 0:00:30]} Kc6 {[%emt 0:00:30]} 60. Rg7 {[%emt 0:00:30]} Kc5 {[%emt 0:00:30]} 61. Rg8 {[%emt 0:00:30]} Kc6 {[%emt 0:00:30]} 62. Rd8 {[%emt 0:00:30]} Kc7 {[%emt 0:00:30]} 63. Rd3 {[%emt 0:00:30]} Kc6 {[%emt 0:00:30]} 64. b4 {[%emt 0:00:30]} axb4+ {[%emt 0:00:00]} 65. Kxb4 {[%emt 0:11:30]} Rh4 {[%emt 0:00:00]} 66. Rg3 {[%emt 0:00:30]} Rh6 {[%emt 0:00:27]} 67. Rg5 {[%emt 0:00:30]} Rf6 {[%emt 0:00:30]} 68. a5 {[%emt 0:00:30]} bxa5+ {[%emt 0:00:30]} 69. Rxa5 {[%emt 0:00:30]} Rf1 {[%emt 0:00:30]} 70. Ra6+ {[%emt 0:00:30]} Kb7 {[%emt 0:00:30]} 71. Rh6 {[%emt 0:00:30]} Rf5 {[%emt 0:00:30]} 72. Rd6 {[%emt 0:00:30]} Kc7 {[%emt 0:00:30]} 73. Rg6 {[%emt 0:00:30]} Kb7 {[%emt 0:00:30]} 74. Rg8 {[%emt 0:00:30]} Rh5 {[%emt 0:00:30]} 75. Re8 {[%emt 0:00:30]} Rg5 {[%emt 0:00:30]} 76. Re4 {[%emt 0:02:30]} Rh5 {[%emt 0:00:00]} 77. Rf4 {[%emt 0:00:30]} Rg5 {[%emt 0:00:00]} 78. Kc3 {[%emt 0:00:30]} Kc6 {[%emt 0:00:00]} 79. Kd4 {[%emt 0:00:00]} Rg6 {[%emt 0:00:00]} 80. Kc3 {[%emt 0:00:00]} Rg5 {[%emt 0:00:07]} 81. Rf8 {[%emt 0:01:30]} Kb7 {[%emt 0:00:36]} 82. Rf6 {[%emt 0:00:30]} Kc7 {[%emt 0:00:26]} 83. Kd4 {[%emt 0:00:30]} Rh5 {[%emt 0:00:22]} 84. Kc3 {[%emt 0:00:30]} Kb7 {[%emt 0:00:48]} 85. Kb4 {[%emt 0:00:00]} Kc7 {[%emt 0:00:37]} 86. Rf4 {[%emt 0:00:00]} Kb7 {[%emt 0:00:16]} 87. Rf1 {[%emt 0:00:30]} Kc7 {[%emt 0:00:04]} 88. Rd1 {[%emt 0:01:30]} Kc6 {[%emt 0:00:10]} 89. Ra1 {[%emt 0:00:00]} Rg5 {[%emt 0:00:41]} 90. Ra6+ {[%emt 0:00:00]} Kb7 {[%emt 0:00:30]} 91. Rh6 {[%emt 0:00:30]} Rf5 {[%emt 0:00:00]} 92. Kc3 {[%emt 0:00:30]} Rg5 {[%emt 0:00:39]} 93. Re6 {[%emt 0:00:00]} Kc7 {[%emt 0:00:13]} 94. Kd4 {[%emt 0:00:00]} Rh5 {[%emt 0:00:00]} 95. Re4 {[%emt 0:00:30]} Kc6 {[%emt 0:00:36]} 96. Rg4 {[%emt 0:00:30]} Rh6 {[%emt 0:00:09]} 97. c5 {[%emt 0:01:30]} Rf6 {[%emt 0:00:14]} 98. Kc4 {[%emt 0:00:30]} Rh6 {[%emt 0:00:12]} 99. Kb4 {[%emt 0:00:00]} Rf6 {[%emt 0:00:16]} 100. Rc4 {[%emt 0:00:00]} Rh6 {[%emt 0:00:15]} 101. Rf4 {[%emt 0:00:30]} Rg6 {[%emt 0:00:10]} 1/2-1/2

[Event "10th Cesme Open-B 2024"]
[Site "Cesme"]
[Date "2024.06.29"]
[Round "8"]
[White "Turan, Asim"]
[Black "Gedik, Kerem Bilge"]
[Result "0-1"]
[ECO "E83"]
[WhiteElo "1970"]
[BlackElo "1857"]
[Annotator "RC"]
[PlyCount "92"]
[EventDate "2024.06.23"]
[EventType "swiss"]
[EventCountry "TUR"]
[SourceTitle "playchess.com"]
[Source "ChessBase"]
[SourceQuality "1"]
[TimeControl "5400+30"]

1. d4 {[%emt 0:01:00]} Nf6 {[%emt 0:02:00]} 2. c4 {[%emt 0:00:30]} g6 {[%emt 0:00:30]} 3. f3 {[%emt 0:00:00]} Bg7 {[%emt 0:02:30]} 4. e4 {[%emt 0:00:00]} d6 {[%emt 0:00:30]} 5. Ne2 {[%emt 0:00:00]} O-O {[%emt 0:03:30]} 6. Be3 {[%emt 0:00:00]} Nc6 {[%emt 0:02:30]} 7. Nbc3 {[%emt 0:01:30]} a6 {[%emt 0:05:30]} 8. d5 {[%emt 0:07:30]} Ne5 {[%emt 0:03:30]} 9. Nc1 {[%emt 0:00:30]} e6 {[%emt 0:00:30]} 10. a4 {[%emt 0:00:30]} exd5 {[%emt 0:00:30]} 11. cxd5 {[%emt 0:00:30]} c6 {[%emt 0:04:30]} 12. dxc6 {[%emt 0:06:30]} bxc6 {[%emt 0:01:30]} 13. Be2 {[%emt 0:01:30]} Re8 {[%emt 0:01:30]} 14. a5 {[%emt 0:03:30]} Rb8 {[%emt 0:04:30]} 15. Bb6 {[%emt 0:00:30]} Rxb6 {[%emt 0:00:30]} 16. axb6 {[%emt 0:00:30]} Qxb6 {[%emt 0:00:30]} 17. Na4 {[%emt 0:00:30]} Qc7 {[%emt 0:12:30]} 18. O-O {[%emt 0:00:30]} d5 {[%emt 0:01:30]} 19. f4 {[%emt 0:19:30]} Nxe4 {[%emt 0:00:30]} 20. fxe5 {[%emt 0:00:30]} Bxe5 {[%emt 0:00:00]} 21. Ra3 {[%emt 0:02:30]} Bxh2+ {[%emt 0:03:00]} 22. Kh1 {[%emt 0:00:30]} Ng3+ {[%emt 0:01:30]} 23. Rxg3 {[%emt 0:00:30]} Bxg3 {[%emt 0:00:30]} 24. Qb3 {[%emt 0:19:30]} Re4 {[%emt 0:07:30]} 25. Rf3 {[%emt 0:01:30]} Be5 {[%emt 0:03:30]} 26. g3 {[%emt 0:05:30]} Qd7 {[%emt 0:08:30]} 27. Rf2 {[%emt 0:07:30]} Qh3+ {[%emt 0:03:30]} 28. Rh2 {[%emt 0:00:30]} Qxg3 {[%emt 0:00:30]} 29. Qxg3 {[%emt 0:00:30]} Bxg3 {[%emt 0:06:30]} 30. Nc5 {[%emt 0:01:30]} Rf4 {[%emt 0:02:52]} 31. Rg2 {[%emt 0:00:30]} Rh4+ {[%emt 0:00:30]} 32. Kg1 {[%emt 0:00:00]} Bf4 {[%emt 0:00:00]} 33. N1d3 {[%emt 0:01:26]} Be3+ {[%emt 0:01:13]} 34. Rf2 {[%emt 0:00:04]} Bxf2+ {[%emt 0:00:37]} 35. Kxf2 {[%emt 0:00:30]} Rh2+ {[%emt 0:02:58]} 36. Ke3 {[%emt 0:00:30]} h5 {[%emt 0:00:30]} 37. Ne5 {[%emt 0:00:30]} d4+ {[%emt 0:00:30]} 38. Kd2 {[%emt 0:00:30]} Bg4 {[%emt 0:00:30]} 39. Nxg4 {[%emt 0:00:30]} hxg4 {[%emt 0:02:20]} 40. Ne4 {[%emt 0:05:55]} f5 {[%emt 0:01:43]} 41. Ng5 {[%emt 0:00:22]} f4 {[%emt 0:02:31]} 42. Ke1 {[%emt 0:00:14]} f3 {[%emt 0:01:27]} 43. Bc4+ {[%emt 0:00:31]} Kg7 {[%emt 0:00:52]} 44. b3 {[%emt 0:00:12]} Kf6 {[%emt 0:00:54]} 45. Ne4+ {[%emt 0:01:23]} Ke5 {[%emt 0:00:27]} 46. Nc5 {[%emt 0:00:09]} g3 {[%emt 0:00:52]} 0-1